[Event "Late-Titled-Tuesday-Blitz-May-14-2024"]
[Site "Chess.com"]
[Date "2024.05.14"]
[Round "5"]
[White "N_Mullodzhanov"]
[Black "WPWPWP-2015"]
[Result "0-1"]
[WhiteElo "2585"]
[BlackElo "2447"]
[TimeControl "180+1"]
[EndTime "14:57:28 PDT"]
[Termination "WPWPWP-2015 won by checkmate"]

1. e4 {[%clk 0:03:00.9]} 1... e5 {[%clk 0:02:51.8]} 2. Nf3 {[%clk 0:02:59.3]}
2... Nc6 {[%clk 0:02:51.3]} 3. d4 {[%clk 0:02:58.4]} 3... exd4 {[%clk
0:02:51.1]} 4. Nxd4 {[%clk 0:02:57]} 4... Nf6 {[%clk 0:02:49.8]} 5. Nc3 {[%clk
0:02:57]} 5... Bc5 {[%clk 0:02:48.5]} 6. Nb3 {[%clk 0:02:55.4]} 6... Bb4 {[%clk
0:02:48]} 7. Qe2 {[%clk 0:02:50.9]} 7... O-O {[%clk 0:02:46.7]} 8. Bd2 {[%clk
0:02:47.9]} 8... Bxc3 {[%clk 0:02:43.4]} 9. Bxc3 {[%clk 0:02:47.8]} 9... Nxe4
{[%clk 0:02:39.3]} 10. Bd2 {[%clk 0:02:24.6]} 10... Nxd2 {[%clk 0:02:34.3]} 11.
Qxd2 {[%clk 0:02:24.2]} 11... d6 {[%clk 0:02:19]} 12. O-O-O {[%clk 0:02:18.8]}
12... Bf5 {[%clk 0:02:15.5]} 13. f3 {[%clk 0:02:14.2]} 13... a5 {[%clk
0:02:08.6]} 14. g4 {[%clk 0:02:04.4]} 14... a4 {[%clk 0:02:03.8]} 15. Nd4 {[%clk
0:01:58.6]} 15... Nxd4 {[%clk 0:02:01.4]} 16. Qxd4 {[%clk 0:01:58.9]} 16... Be6
{[%clk 0:01:55.1]} 17. a3 {[%clk 0:01:58.8]} 17... Qf6 {[%clk 0:01:50.6]} 18.
Qxf6 {[%clk 0:01:57.4]} 18... gxf6 {[%clk 0:01:50.3]} 19. f4 {[%clk 0:01:57.8]}
19... Bd7 {[%clk 0:01:39.8]} 20. Bg2 {[%clk 0:01:49.3]} 20... Bc6 {[%clk
0:01:35.9]} 21. Bxc6 {[%clk 0:01:44.4]} 21... bxc6 {[%clk 0:01:36.8]} 22. Rhe1
{[%clk 0:01:43.1]} 22... Rfc8 {[%clk 0:01:11.4]} 23. Re7 {[%clk 0:01:37.7]}
23... Kf8 {[%clk 0:01:10.3]} 24. Re4 {[%clk 0:01:32.8]} 24... c5 {[%clk
0:01:06.4]} 25. f5 {[%clk 0:01:29.2]} 25... Re8 {[%clk 0:01:02.7]} 26. Ree1
{[%clk 0:01:15.4]} 26... Re5 {[%clk 0:00:58.7]} 27. Rxe5 {[%clk 0:00:56.4]}
27... fxe5 {[%clk 0:00:58.3]} 28. f6 {[%clk 0:00:56.5]} 28... Ke8 {[%clk
0:00:54.4]} 29. Rd3 {[%clk 0:00:52.6]} 29... Kd7 {[%clk 0:00:53.2]} 30. g5
{[%clk 0:00:49.8]} 30... Ke6 {[%clk 0:00:50.8]} 31. c4 {[%clk 0:00:48.6]} 31...
Kf5 {[%clk 0:00:49.6]} 32. h4 {[%clk 0:00:41.4]} 32... Kg4 {[%clk 0:00:46.7]}
33. Rd1 {[%clk 0:00:36.2]} 33... Kxh4 {[%clk 0:00:43.9]} 34. Rg1 {[%clk
0:00:36.4]} 34... Kh5 {[%clk 0:00:42.1]} 35. Kd2 {[%clk 0:00:33.7]} 35... Rg8
{[%clk 0:00:14.6]} 36. Rh1+ {[%clk 0:00:28.6]} 36... Kg6 {[%clk 0:00:14.1]} 37.
Ke3 {[%clk 0:00:28.6]} 37... Rh8 {[%clk 0:00:11.3]} 38. Rg1 {[%clk 0:00:26.1]}
38... h6 {[%clk 0:00:10.1]} 39. gxh6+ {[%clk 0:00:20.3]} 39... Kxf6 {[%clk
0:00:10.5]} 40. Rh1 {[%clk 0:00:18.6]} 40... Kg6 {[%clk 0:00:10.7]} 41. Ke4
{[%clk 0:00:17.7]} 41... f5+ {[%clk 0:00:09.5]} 42. Kd5 {[%clk 0:00:17.9]} 42...
Rxh6 {[%clk 0:00:09.8]} 43. Rg1+ {[%clk 0:00:17.8]} 43... Kf6 {[%clk 0:00:10.3]}
44. Rg8 {[%clk 0:00:13.4]} 44... Rh7 {[%clk 0:00:09.6]} 45. Ra8 {[%clk 0:00:09]}
45... e4 {[%clk 0:00:09.4]} 46. Re8 {[%clk 0:00:03.3]} 46... Re7 {[%clk
0:00:08.7]} 47. Rf8+ {[%clk 0:00:03.8]} 47... Kg6 {[%clk 0:00:08.1]} 48. Rg8+
{[%clk 0:00:04.4]} 48... Kf6 {[%clk 0:00:07.9]} 49. Rf8+ {[%clk 0:00:04.7]}
49... Kg5 {[%clk 0:00:08.4]} 50. Rg8+ {[%clk 0:00:05.3]} 50... Kf4 {[%clk
0:00:08.8]} 51. Rg1 {[%clk 0:00:04.3]} 51... e3 {[%clk 0:00:09]} 52. Rf1+ {[%clk
0:00:04.6]} 52... Kg4 {[%clk 0:00:09.5]} 53. b4 {[%clk 0:00:03]} 53... axb3
{[%clk 0:00:07.6]} 54. a4 {[%clk 0:00:02.3]} 54... e2 {[%clk 0:00:07.9]} 55. Re1
{[%clk 0:00:02.8]} 55... f4 {[%clk 0:00:08.4]} 56. a5 {[%clk 0:00:02.9]} 56...
f3 {[%clk 0:00:08.9]} 57. a6 {[%clk 0:00:03.3]} 57... Re8 {[%clk 0:00:08.8]} 58.
a7 {[%clk 0:00:03.5]} 58... Ra8 {[%clk 0:00:08.7]} 59. Ra1 {[%clk 0:00:02.1]}
59... f2 {[%clk 0:00:08.4]} 60. Kc6 {[%clk 0:00:02.4]} 60... Rxa7 {[%clk
0:00:08]} 61. Rxa7 {[%clk 0:00:02.5]} 61... e1=Q {[%clk 0:00:08]} 62. Rxc7
{[%clk 0:00:03.4]} 62... Qe4+ {[%clk 0:00:07.8]} 63. Kxd6 {[%clk 0:00:02.8]}
63... b2 {[%clk 0:00:07.9]} 64. Rg7+ {[%clk 0:00:02.7]} 64... Kh3 {[%clk
0:00:07.9]} 65. Rg5 {[%clk 0:00:01.7]} 65... b1=Q {[%clk 0:00:07.7]} 66. Rh5+
{[%clk 0:00:02.1]} 66... Kg2 {[%clk 0:00:07.5]} 67. Rg5+ {[%clk 0:00:02.4]}
67... Kf1 {[%clk 0:00:07.4]} 68. Rxc5 {[%clk 0:00:03.1]} 68... Qd1+ {[%clk
0:00:06.7]} 69. Kc7 {[%clk 0:00:03]} 69... Ke1 {[%clk 0:00:06]} 70. Rg5 {[%clk
0:00:02.6]} 70... f1=Q {[%clk 0:00:05.7]} 71. Kb8 {[%clk 0:00:02.7]} 71... Qff4+
{[%clk 0:00:05.4]} 72. Re5 {[%clk 0:00:01.9]} 72... Qexe5+ {[%clk 0:00:04.6]}
73. Kb7 {[%clk 0:00:02.1]} 73... Qb3+ {[%clk 0:00:04.1]} 74. Kc6 {[%clk
0:00:02.2]} 74... Qfxc4+ {[%clk 0:00:03.6]} 75. Kd7 {[%clk 0:00:02.5]} 75...
Qbd3# {[%clk 0:00:03.1]} 0-1

[Event "Late-Titled-Tuesday-Blitz-May-14-2024"]
[Site "Chess.com"]
[Date "2024.05.14"]
[Round "5"]
[White "GMBenjaminBok"]
[Black "moro182"]
[Result "1-0"]
[WhiteElo "3040"]
[BlackElo "2895"]
[TimeControl "180+1"]
[EndTime "14:57:48 PDT"]
[Termination "GMBenjaminBok won by resignation"]

1. d4 {[%clk 0:03:00.9]} 1... g6 {[%clk 0:02:57.3]} 2. Nf3 {[%clk 0:02:59.9]}
2... Bg7 {[%clk 0:02:58.2]} 3. c4 {[%clk 0:02:59.7]} 3... d6 {[%clk 0:02:54.9]}
4. Nc3 {[%clk 0:02:59.7]} 4... Nc6 {[%clk 0:02:53.7]} 5. g3 {[%clk 0:02:59.2]}
5... Bd7 {[%clk 0:02:53.5]} 6. Bg2 {[%clk 0:02:59.5]} 6... Qc8 {[%clk
0:02:54.1]} 7. O-O {[%clk 0:02:59.3]} 7... Bh3 {[%clk 0:02:54.6]} 8. e4 {[%clk
0:02:58.6]} 8... Bg4 {[%clk 0:02:53.4]} 9. Be3 {[%clk 0:02:53.1]} 9... e5 {[%clk
0:02:53.2]} 10. d5 {[%clk 0:02:47.6]} 10... Nd4 {[%clk 0:02:52.8]} 11. Nb5
{[%clk 0:02:33.8]} 11... Nxf3+ {[%clk 0:02:20.6]} 12. Bxf3 {[%clk 0:02:34.7]}
12... Bxf3 {[%clk 0:02:21]} 13. Qxf3 {[%clk 0:02:34.4]} 13... a6 {[%clk
0:02:21.9]} 14. Nc3 {[%clk 0:02:30.4]} 14... f5 {[%clk 0:02:22]} 15. c5 {[%clk
0:02:24.1]} 15... Nf6 {[%clk 0:02:21.1]} 16. cxd6 {[%clk 0:02:22.8]} 16... cxd6
{[%clk 0:02:22]} 17. Rac1 {[%clk 0:02:15.4]} 17... O-O {[%clk 0:02:13.6]} 18.
exf5 {[%clk 0:01:37.3]} 18... Qxf5 {[%clk 0:02:07.4]} 19. Qxf5 {[%clk
0:01:34.5]} 19... gxf5 {[%clk 0:02:08.3]} 20. Rfd1 {[%clk 0:01:28.6]} 20... Rac8
{[%clk 0:02:06]} 21. f3 {[%clk 0:01:27.6]} 21... Rc4 {[%clk 0:01:46.6]} 22. b3
{[%clk 0:01:27.2]} 22... Rc7 {[%clk 0:01:46.5]} 23. Bb6 {[%clk 0:01:26.5]} 23...
Rcc8 {[%clk 0:01:47]} 24. Kf2 {[%clk 0:01:03.7]} 24... e4 {[%clk 0:01:41.2]} 25.
Bd4 {[%clk 0:01:00.6]} 25... exf3 {[%clk 0:01:41.2]} 26. Kxf3 {[%clk 0:01:00]}
26... Ng4 {[%clk 0:01:41.4]} 27. Bxg7 {[%clk 0:00:55.9]} 27... Kxg7 {[%clk
0:01:42.3]} 28. h3 {[%clk 0:00:50.8]} 28... Ne5+ {[%clk 0:01:41.5]} 29. Kg2
{[%clk 0:00:48.5]} 29... f4 {[%clk 0:01:37.7]} 30. gxf4 {[%clk 0:00:49.4]} 30...
Rxf4 {[%clk 0:01:36]} 31. Ne2 {[%clk 0:00:48.3]} 31... Rxc1 {[%clk 0:01:26.5]}
32. Rxc1 {[%clk 0:00:49.2]} 32... Rf7 {[%clk 0:01:05.9]} 33. Nd4 {[%clk
0:00:46.9]} 33... Nd3 {[%clk 0:00:59.2]} 34. Ne6+ {[%clk 0:00:45.2]} 34... Kg6
{[%clk 0:00:58.3]} 35. Rc8 {[%clk 0:00:27]} 35... Nb4 {[%clk 0:00:43]} 36. Rd8
{[%clk 0:00:20.7]} 36... Nxd5 {[%clk 0:00:42.8]} 37. Rxd6 {[%clk 0:00:20.9]}
37... Ne3+ {[%clk 0:00:43.3]} 38. Kg1 {[%clk 0:00:19.3]} 38... Rf1+ {[%clk
0:00:28.6]} 39. Kh2 {[%clk 0:00:19.4]} 39... Kf5 {[%clk 0:00:29.2]} 40. Nc5
{[%clk 0:00:16.4]} 40... Rf2+ {[%clk 0:00:22.1]} 41. Kg3 {[%clk 0:00:16.6]}
41... Rxa2 {[%clk 0:00:22.7]} 42. Rb6 {[%clk 0:00:15.6]} 42... Nf1+ {[%clk
0:00:15.7]} 43. Kf3 {[%clk 0:00:14.8]} 43... Nd2+ {[%clk 0:00:16.3]} 44. Ke3
{[%clk 0:00:13.8]} 44... Nf1+ {[%clk 0:00:16.6]} 45. Kd4 {[%clk 0:00:11.6]}
45... Rd2+ {[%clk 0:00:11.6]} 46. Kc3 {[%clk 0:00:11.8]} 46... Rh2 {[%clk
0:00:11.7]} 47. Rxb7 {[%clk 0:00:11.8]} 47... Rxh3+ {[%clk 0:00:12.1]} 48. Kb4
{[%clk 0:00:12.1]} 48... Nd2 {[%clk 0:00:10.3]} 49. Rd7 {[%clk 0:00:10.2]} 49...
Nf3 {[%clk 0:00:06.7]} 50. Rf7+ {[%clk 0:00:07.9]} 50... Kg6 {[%clk 0:00:05.4]}
51. Ra7 {[%clk 0:00:06.6]} 51... Ne5 {[%clk 0:00:05.6]} 52. Rxa6+ {[%clk
0:00:06.5]} 52... Kf5 {[%clk 0:00:06.3]} 53. Ra8 {[%clk 0:00:06]} 53... h5
{[%clk 0:00:06.4]} 54. Rf8+ {[%clk 0:00:05.9]} 54... Kg6 {[%clk 0:00:05.8]} 55.
Kb5 {[%clk 0:00:03.8]} 55... h4 {[%clk 0:00:06.1]} 56. b4 {[%clk 0:00:04.1]}
56... Rh1 {[%clk 0:00:06]} 57. Ne4 {[%clk 0:00:03.3]} 57... h3 {[%clk
0:00:05.7]} 58. Rh8 {[%clk 0:00:03.5]} 58... Nf7 {[%clk 0:00:04.8]} 59. Rh4
{[%clk 0:00:02.9]} 59... Ng5 {[%clk 0:00:04.7]} 60. Nf2 {[%clk 0:00:02.5]} 60...
Rb1 {[%clk 0:00:04]} 61. Nxh3 {[%clk 0:00:02.3]} 61... Nf3 {[%clk 0:00:04]} 62.
Rg4+ {[%clk 0:00:02.1]} 62... Kh5 {[%clk 0:00:04.6]} 63. Re4 {[%clk 0:00:02.2]}
63... Kg6 {[%clk 0:00:03.8]} 64. Rf4 {[%clk 0:00:02.1]} 64... Nd2 {[%clk
0:00:03.4]} 65. Rd4 {[%clk 0:00:02.3]} 65... Nb3 {[%clk 0:00:03.5]} 66. Rd3
{[%clk 0:00:02.3]} 66... Kf5 {[%clk 0:00:03.7]} 67. Nf2 {[%clk 0:00:02.7]} 67...
Ke5 {[%clk 0:00:03.5]} 68. Ng4+ {[%clk 0:00:03.1]} 68... Ke4 {[%clk 0:00:03.3]}
69. Nf2+ {[%clk 0:00:03.5]} 69... Ke5 {[%clk 0:00:03.8]} 70. Nd1 {[%clk
0:00:03.7]} 70... Nd4+ {[%clk 0:00:04.1]} 71. Kc4 {[%clk 0:00:04]} 71... Rc1+
{[%clk 0:00:04.4]} 72. Nc3 {[%clk 0:00:04.2]} 72... Ne2 {[%clk 0:00:04.2]} 73.
b5 {[%clk 0:00:03.6]} 73... Nf4 {[%clk 0:00:04.8]} 74. Re3+ {[%clk 0:00:03.4]}
74... Kd6 {[%clk 0:00:05.4]} 75. Re4 {[%clk 0:00:03.8]} 75... Ne6 {[%clk
0:00:04.9]} 76. Rg4 {[%clk 0:00:03.3]} 76... Nc7 {[%clk 0:00:03.2]} 77. Kb4
{[%clk 0:00:03.3]} 77... Kd7 {[%clk 0:00:01.7]} 78. b6 {[%clk 0:00:03.6]} 78...
Na6+ {[%clk 0:00:01.8]} 79. Kc4 {[%clk 0:00:04]} 79... Nc7 {[%clk 0:00:01.7]}
80. Rg7+ {[%clk 0:00:03.3]} 80... Kc6 {[%clk 0:00:02.4]} 81. bxc7 {[%clk
0:00:04.2]} 81... Kb7 {[%clk 0:00:02.9]} 82. Kd4 {[%clk 0:00:04.5]} 82... Rc2
{[%clk 0:00:03.1]} 83. Nd5 {[%clk 0:00:04.4]} 83... Rd2+ {[%clk 0:00:03.6]} 84.
Ke5 {[%clk 0:00:03.8]} 84... Re2+ {[%clk 0:00:04]} 85. Kd6 {[%clk 0:00:04.3]}
85... Rd2 {[%clk 0:00:04.6]} 86. Rg8 {[%clk 0:00:04.6]} 1-0

[Event "Late-Titled-Tuesday-Blitz-May-14-2024"]
[Site "Chess.com"]
[Date "2024.05.14"]
[Round "5"]
[White "Bryanl106"]
[Black "GMMikhailKazakov"]
[Result "1/2-1/2"]
[WhiteElo "2679"]
[BlackElo "2519"]
[TimeControl "180+1"]
[EndTime "14:58:08 PDT"]
[Termination "Game drawn by repetition"]

1. e4 {[%clk 0:02:56.5]} 1... d6 {[%clk 0:02:54]} 2. d4 {[%clk 0:02:56.3]} 2...
Nf6 {[%clk 0:02:54]} 3. Nc3 {[%clk 0:02:56.3]} 3... e5 {[%clk 0:02:54.3]} 4. Nf3
{[%clk 0:02:56.1]} 4... Nbd7 {[%clk 0:02:53.4]} 5. g4 {[%clk 0:02:53]} 5... h6
{[%clk 0:02:47.3]} 6. Rg1 {[%clk 0:02:50.1]} 6... c6 {[%clk 0:02:43.9]} 7. a4
{[%clk 0:02:44.2]} 7... a5 {[%clk 0:02:31.8]} 8. Bc4 {[%clk 0:02:40.8]} 8...
exd4 {[%clk 0:02:26]} 9. Nxd4 {[%clk 0:02:39.7]} 9... Ne5 {[%clk 0:02:24]} 10.
Be2 {[%clk 0:02:38.6]} 10... Qb6 {[%clk 0:02:03]} 11. Nb3 {[%clk 0:02:13.6]}
11... Qc7 {[%clk 0:01:56.6]} 12. f4 {[%clk 0:02:10.9]} 12... Ng6 {[%clk
0:01:52.5]} 13. Be3 {[%clk 0:02:08.3]} 13... Be7 {[%clk 0:01:42.7]} 14. Nd4
{[%clk 0:02:00.2]} 14... d5 {[%clk 0:01:22.3]} 15. e5 {[%clk 0:01:58.6]} 15...
Ne4 {[%clk 0:01:22]} 16. Nxe4 {[%clk 0:01:58.9]} 16... dxe4 {[%clk 0:01:21.9]}
17. Nf5 {[%clk 0:01:58.7]} 17... Bxf5 {[%clk 0:01:11.9]} 18. gxf5 {[%clk
0:01:59.6]} 18... Nh4 {[%clk 0:01:12.2]} 19. Qd4 {[%clk 0:01:52.7]} 19... Nxf5
{[%clk 0:01:04.9]} 20. Qxe4 {[%clk 0:01:52.2]} 20... Nxe3 {[%clk 0:01:04.7]} 21.
Qxe3 {[%clk 0:01:53.1]} 21... Bh4+ {[%clk 0:01:04.9]} 22. Kf1 {[%clk 0:01:51.8]}
22... g6 {[%clk 0:00:57.6]} 23. Qh3 {[%clk 0:01:46.4]} 23... Be7 {[%clk
0:00:55.6]} 24. e6 {[%clk 0:01:45.4]} 24... Qxf4+ {[%clk 0:00:51.3]} 25. Kg2
{[%clk 0:01:44.4]} 25... Qe4+ {[%clk 0:00:36.9]} 26. Bf3 {[%clk 0:01:44.2]}
26... Qxe6 {[%clk 0:00:36.6]} 27. Qxe6 {[%clk 0:01:42.4]} 27... fxe6 {[%clk
0:00:37.5]} 28. Rge1 {[%clk 0:01:42.4]} 28... O-O {[%clk 0:00:32.1]} 29. Rxe6
{[%clk 0:01:41.9]} 29... Bf6 {[%clk 0:00:32.5]} 30. Rae1 {[%clk 0:01:31.4]}
30... Kf7 {[%clk 0:00:28.8]} 31. c3 {[%clk 0:01:12.8]} 31... Rae8 {[%clk
0:00:27.4]} 32. R6e4 {[%clk 0:01:11.3]} 32... Rxe4 {[%clk 0:00:25.5]} 33. Bxe4
{[%clk 0:01:12.2]} 33... Rd8 {[%clk 0:00:25.1]} 34. Re2 {[%clk 0:01:08.4]} 34...
h5 {[%clk 0:00:25]} 35. Kf3 {[%clk 0:01:07.3]} 35... Rd6 {[%clk 0:00:20.6]} 36.
Rg2 {[%clk 0:01:04.1]} 36... Bg7 {[%clk 0:00:19.3]} 37. h3 {[%clk 0:01:00.3]}
37... Rf6+ {[%clk 0:00:19.7]} 38. Ke2 {[%clk 0:00:59.5]} 38... Bh6 {[%clk
0:00:20.3]} 39. Kd3 {[%clk 0:00:59.7]} 39... g5 {[%clk 0:00:16.7]} 40. Rg3
{[%clk 0:00:56.9]} 40... Rf4 {[%clk 0:00:16.3]} 41. Bf3 {[%clk 0:00:56.1]} 41...
Rh4 {[%clk 0:00:15]} 42. Bd1 {[%clk 0:00:53.2]} 42... Kf6 {[%clk 0:00:15.1]} 43.
Rf3+ {[%clk 0:00:46.8]} 43... Kg7 {[%clk 0:00:15.2]} 44. Rf1 {[%clk 0:00:28.8]}
44... Kg8 {[%clk 0:00:08.4]} 45. Rf3 {[%clk 0:00:21.1]} 45... Kg7 {[%clk
0:00:08.7]} 46. Rg3 {[%clk 0:00:19.1]} 46... Kf6 {[%clk 0:00:08.3]} 47. Be2
{[%clk 0:00:17.2]} 47... Ke5 {[%clk 0:00:07.6]} 48. Re3+ {[%clk 0:00:16.8]}
48... Kf6 {[%clk 0:00:07.5]} 49. Rf3+ {[%clk 0:00:16.9]} 49... Kg7 {[%clk
0:00:07.7]} 50. b3 {[%clk 0:00:16.4]} 50... Kg6 {[%clk 0:00:06.9]} 51. Kd2
{[%clk 0:00:16]} 51... Bg7 {[%clk 0:00:07]} 52. Bd3+ {[%clk 0:00:16.2]} 52...
Kh6 {[%clk 0:00:06.8]} 53. Re3 {[%clk 0:00:15.3]} 53... Bf6 {[%clk 0:00:06.5]}
54. Re6 {[%clk 0:00:15.3]} 54... Kg7 {[%clk 0:00:06.8]} 55. Bf5 {[%clk
0:00:15.7]} 55... Rf4 {[%clk 0:00:06.3]} 56. Bd3 {[%clk 0:00:15.4]} 56... Rf3
{[%clk 0:00:06.4]} 57. Rd6 {[%clk 0:00:14.7]} 57... Rxh3 {[%clk 0:00:05.8]} 58.
Rd7+ {[%clk 0:00:15.6]} 58... Kf8 {[%clk 0:00:06]} 59. Rxb7 {[%clk 0:00:16.1]}
59... g4 {[%clk 0:00:06.5]} 60. Bf5 {[%clk 0:00:16]} 60... Bxc3+ {[%clk
0:00:05.9]} 61. Ke2 {[%clk 0:00:16.5]} 61... Bb4 {[%clk 0:00:06.3]} 62. Be4
{[%clk 0:00:14.4]} 62... Rxb3 {[%clk 0:00:05.9]} 63. Bxc6 {[%clk 0:00:14.8]}
63... Rc3 {[%clk 0:00:06.1]} 64. Bd5 {[%clk 0:00:15]} 64... g3 {[%clk
0:00:06.5]} 65. Kf1 {[%clk 0:00:14.9]} 65... h4 {[%clk 0:00:06.4]} 66. Kg2
{[%clk 0:00:15.5]} 66... Rc2+ {[%clk 0:00:06.4]} 67. Kh3 {[%clk 0:00:14.5]}
67... Rh2+ {[%clk 0:00:06.3]} 68. Kg4 {[%clk 0:00:15]} 68... g2 {[%clk
0:00:06.9]} 69. Bxg2 {[%clk 0:00:14.5]} 69... Rxg2+ {[%clk 0:00:07.8]} 70. Kxh4
{[%clk 0:00:15.4]} 70... Ra2 {[%clk 0:00:08]} 71. Kg4 {[%clk 0:00:16]} 71...
Rxa4 {[%clk 0:00:08.2]} 72. Kf3 {[%clk 0:00:16.8]} 72... Ra3+ {[%clk 0:00:09.1]}
73. Ke4 {[%clk 0:00:17.2]} 73... Rc3 {[%clk 0:00:09.7]} 74. Kd4 {[%clk
0:00:17.2]} 74... Rc8 {[%clk 0:00:10.2]} 75. Kd5 {[%clk 0:00:16.2]} 75... Ke8
{[%clk 0:00:10.5]} 76. Rh7 {[%clk 0:00:15.6]} 76... Kd8 {[%clk 0:00:10.7]} 77.
Ra7 {[%clk 0:00:13.8]} 77... Rb8 {[%clk 0:00:10.7]} 78. Kc6 {[%clk 0:00:13.6]}
78... Kc8 {[%clk 0:00:09.4]} 79. Rc7+ {[%clk 0:00:12.9]} 79... Kd8 {[%clk
0:00:09.5]} 80. Ra7 {[%clk 0:00:13.8]} 80... Ke8 {[%clk 0:00:08.3]} 81. Kc7
{[%clk 0:00:07.6]} 81... Rd8 {[%clk 0:00:08.1]} 82. Kc6 {[%clk 0:00:07.9]} 82...
Rd6+ {[%clk 0:00:08.3]} 83. Kb5 {[%clk 0:00:07.7]} 83... Rd7 {[%clk 0:00:08.8]}
84. Ra8+ {[%clk 0:00:07.2]} 84... Ke7 {[%clk 0:00:08.9]} 85. Rh8 {[%clk
0:00:07.5]} 85... Kd6 {[%clk 0:00:08.9]} 86. Rh6+ {[%clk 0:00:07]} 86... Kd5
{[%clk 0:00:09]} 87. Rh5+ {[%clk 0:00:07.2]} 87... Kd4 {[%clk 0:00:09.2]} 88.
Ka4 {[%clk 0:00:07]} 88... Kc4 {[%clk 0:00:08.7]} 89. Rh1 {[%clk 0:00:06.7]}
89... Rd3 {[%clk 0:00:06.9]} 90. Rh4+ {[%clk 0:00:04.4]} 90... Kc3 {[%clk
0:00:06.6]} 91. Rh2 {[%clk 0:00:03.8]} 91... Rd4 {[%clk 0:00:03.7]} 92. Rh3+
{[%clk 0:00:03.9]} 92... Kc2 {[%clk 0:00:03.3]} 93. Rh2+ {[%clk 0:00:02.1]}
93... Bd2+ {[%clk 0:00:02.5]} 94. Ka3 {[%clk 0:00:01.4]} 94... Rd3+ {[%clk
0:00:03]} 95. Ka4 {[%clk 0:00:01.8]} 95... Rd4+ {[%clk 0:00:03.5]} 96. Ka3
{[%clk 0:00:02.4]} 96... Kd3 {[%clk 0:00:03.6]} 97. Rh3+ {[%clk 0:00:02.6]}
97... Kc2 {[%clk 0:00:03.7]} 98. Rh2 {[%clk 0:00:03.1]} 1/2-1/2